[Event "FIDE World Rapid Chess Championship 2021"]
[White "Tari, Aryan"]
[Black "Kolosowski, Mateusz"]
[WhiteFideId "1510045"]
[BlackFideId "1129708"]
[WhiteElo "2542"]
[BlackElo "2371"]
[Result "1-0"]
[Round "04"]
[TimeControl "900+10"]
[Date "2021.12.26"]
[WhiteClock "0:04:14"]
[BlackClock "0:00:41"]

1. e4 {[%clk 0:15:34]}  e5 {[%clk 0:15:35]} 2. Nf3 {[%clk 0:15:34]}  Nc6 {[%clk 0:15:35]} 3. Bb5 {[%clk 0:15:34]}  Nge7 {[%clk 0:15:35]} 4. Nc3 {[%clk 0:15:34]}  Ng6 {[%clk 0:15:35]} 5. d4 {[%clk 0:15:34]}  exd4 {[%clk 0:15:35]} 6. Nxd4 {[%clk 0:15:34]}  Nxd4 {[%clk 0:15:35]} 7. Qxd4 {[%clk 0:15:34]}  c6 {[%clk 0:15:35]} 8. Bc4 {[%clk 0:15:34]}  Qb6 {[%clk 0:15:35]} 9. Qd1 {[%clk 0:15:34]}  Be7 {[%clk 0:15:48]} 10. O-O {[%clk 0:14:53]}  O-O {[%clk 0:15:48]} 11. Bb3 {[%clk 0:14:53]}  d6 {[%clk 0:15:48]} 12. Be3 {[%clk 0:14:53]}  Qc7 {[%clk 0:15:48]} 13. f4 {[%clk 0:14:53]}  Bf6 {[%clk 0:08:28]} 14. Kh1 {[%clk 0:14:06]}  Qe7 {[%clk 0:08:28]} 15. Qf3 {[%clk 0:14:06]}  Be6 {[%clk 0:07:23]} 16. Rae1 {[%clk 0:11:28]}  Bxc3 {[%clk 0:05:57]} 17. bxc3 {[%clk 0:11:28]}  Bxb3 {[%clk 0:05:57]} 18. axb3 {[%clk 0:11:35]}  f5 {[%clk 0:03:49]} 19. exf5 {[%clk 0:11:29]}  Rxf5 {[%clk 0:03:49]} 20. g4 {[%clk 0:09:53]}  Rf7 {[%clk 0:03:26]} 21. Bd4 {[%clk 0:09:53]}  Qd7 {[%clk 0:03:26]} 22. f5 {[%clk 0:09:53]}  c5 {[%clk 0:03:26]} 23. Be3 {[%clk 0:08:23]}  Ne5 {[%clk 0:02:56]} 24. Qg2 {[%clk 0:08:23]}  Raf8 {[%clk 0:02:56]} 25. Bf4 {[%clk 0:08:23]}  h5 {[%clk 0:01:23]} 26. h3 {[%clk 0:07:08]}  hxg4 {[%clk 0:01:23]} 27. hxg4 {[%clk 0:07:08]}  g6 {[%clk 0:01:23]} 28. Bxe5 {[%clk 0:06:47]}  dxe5 {[%clk 0:01:11]} 29. Rxe5 {[%clk 0:06:47]}  Rh7+ {[%clk 0:01:11]} 30. Kg1 {[%clk 0:06:47]}  gxf5 {[%clk 0:01:11]} 31. Rexf5 {[%clk 0:06:47]}  Rxf5 {[%clk 0:01:11]} 32. Rxf5 {[%clk 0:06:47]}  Qd1+ {[%clk 0:01:11]} 33. Rf1 {[%clk 0:06:47]}  Qd6 {[%clk 0:01:11]} 34. Re1 {[%clk 0:03:43]}  Rh4 {[%clk 0:01:37]} 35. Qf3 {[%clk 0:03:43]}  Qh2+ {[%clk 0:00:42]} 36. Kf1 {[%clk 0:02:55]}  Qh1+ {[%clk 0:00:21]} 37. Qxh1 {[%clk 0:03:10]}  Rxh1+ {[%clk 0:00:21]} 38. Ke2 {[%clk 0:03:10]}  Rh3 {[%clk 0:00:21]} 39. Kd2 {[%clk 0:03:10]}  Kf7 {[%clk 0:00:21]} 40. Ra1 {[%clk 0:03:10]}  a6 {[%clk 0:00:21]} 41. Ra5 {[%clk 0:03:10]}  c4 {[%clk 0:00:21]} 42. b4 {[%clk 0:03:10]}  Rh2+ {[%clk 0:00:21]} 43. Kc1 {[%clk 0:03:10]}  Ke6 {[%clk 0:00:21]} 44. Rc5 {[%clk 0:03:10]}  b5 {[%clk 0:00:21]} 45. Rc6+ {[%clk 0:03:10]}  Kd5 {[%clk 0:00:21]} 46. Rxa6 {[%clk 0:03:10]}  Rg2 {[%clk 0:00:21]} 47. Rb6 {[%clk 0:03:10]}  Rxg4 {[%clk 0:00:21]} 48. Rxb5+ {[%clk 0:03:10]}  Kd6 {[%clk 0:00:41]} 49. Rc5 {[%clk 0:04:14]}  Rh4 {[%clk 0:00:41]} 50. Kb2 {[%clk 0:04:14]}  Rg4 {[%clk 0:00:41]} 51. Ka3 {[%clk 0:04:14]} 1-0


[Site "http://www.Chess.com"]

[Event "FIDE World Rapid Chess Championship 2021"]
[White "Donchenko, Alexander"]
[Black "Wieczorek, Oskar"]
[WhiteFideId "24603295"]
[BlackFideId "1133950"]
[WhiteElo "2535"]
[BlackElo "2367"]
[Result "0-1"]
[Round "04"]
[TimeControl "900+10"]
[Date "2021.12.26"]
[WhiteClock "0:12:19"]
[BlackClock "0:03:51"]

1. c4 {[%clk 0:15:22]}  g6 {[%clk 0:15:19]} 2. g3 {[%clk 0:15:22]}  Bg7 {[%clk 0:15:19]} 3. Bg2 {[%clk 0:15:22]}  e5 {[%clk 0:15:19]} 4. Nc3 {[%clk 0:15:22]}  f5 {[%clk 0:15:19]} 5. d3 {[%clk 0:15:22]}  Nf6 {[%clk 0:15:19]} 6. e4 {[%clk 0:15:22]}  d6 {[%clk 0:15:19]} 7. Nge2 {[%clk 0:15:22]}  Nc6 {[%clk 0:15:19]} 8. O-O {[%clk 0:15:22]}  O-O {[%clk 0:15:19]} 9. Nd5 {[%clk 0:15:47]}  f4 {[%clk 0:14:29]} 10. gxf4 {[%clk 0:15:47]}  Nh5 {[%clk 0:14:04]} 11. fxe5 {[%clk 0:15:47]}  dxe5 {[%clk 0:14:04]} 12. Be3 {[%clk 0:15:47]}  Nd4 {[%clk 0:14:04]} 13. Ng3 {[%clk 0:13:41]}  c6 {[%clk 0:05:52]} 14. Nxh5 {[%clk 0:13:41]}  gxh5 {[%clk 0:05:52]} 15. Nc3 {[%clk 0:13:41]}  Qh4 {[%clk 0:05:52]} 16. f3 {[%clk 0:13:26]}  Bd7 {[%clk 0:03:51]} 17. Qd2 {[%clk 0:12:19]} 0-1


[Site "http://www.Chess.com"]

[Event "FIDE World Rapid Chess Championship 2021"]
[White "Klekowski, Maciej"]
[Black "Sargsyan, Shant"]
[WhiteFideId "1132717"]
[BlackFideId "13306766"]
[WhiteElo "2528"]
[BlackElo "2344"]
[Result "0-1"]
[Round "04"]
[TimeControl "900+10"]
[Date "2021.12.26"]
[WhiteClock "0:00:01"]
[BlackClock "0:00:00"]

1. c4 {[%clk 0:15:06]}  Nf6 {[%clk 0:15:09]} 2. Nc3 {[%clk 0:15:06]}  e5 {[%clk 0:15:09]} 3. g3 {[%clk 0:15:06]}  Bb4 {[%clk 0:15:09]} 4. Bg2 {[%clk 0:15:06]}  O-O {[%clk 0:15:09]} 5. e4 {[%clk 0:15:06]}  Bxc3 {[%clk 0:15:09]} 6. dxc3 {[%clk 0:15:06]}  d6 {[%clk 0:15:09]} 7. h3 {[%clk 0:14:11]}  a6 {[%clk 0:15:10]} 8. a4 {[%clk 0:14:11]}  Be6 {[%clk 0:15:10]} 9. b3 {[%clk 0:14:11]}  Nbd7 {[%clk 0:15:10]} 10. Be3 {[%clk 0:14:11]}  b5 {[%clk 0:15:11]} 11. cxb5 {[%clk 0:11:16]}  axb5 {[%clk 0:12:59]} 12. a5 {[%clk 0:11:16]}  Nc5 {[%clk 0:12:59]} 13. Bxc5 {[%clk 0:11:16]}  dxc5 {[%clk 0:12:59]} 14. Qc2 {[%clk 0:08:51]}  c6 {[%clk 0:13:03]} 15. Nf3 {[%clk 0:08:51]}  Rxa5 {[%clk 0:13:03]} 16. Rxa5 {[%clk 0:08:13]}  Qxa5 {[%clk 0:11:27]} 17. Nxe5 {[%clk 0:08:13]}  Qa1+ {[%clk 0:06:29]} 18. Ke2 {[%clk 0:07:56]}  Qa3 {[%clk 0:06:29]} 19. Rb1 {[%clk 0:07:56]}  c4 {[%clk 0:06:29]} 20. b4 {[%clk 0:07:56]}  Re8 {[%clk 0:06:29]} 21. f4 {[%clk 0:07:56]}  Nh5 {[%clk 0:06:20]} 22. Bf3 {[%clk 0:06:25]}  Nf6 {[%clk 0:05:56]} 23. g4 {[%clk 0:05:28]}  c5 {[%clk 0:04:21]} 24. Qb2 {[%clk 0:05:28]}  cxb4 {[%clk 0:02:01]} 25. Qxb4 {[%clk 0:05:18]}  Qa2+ {[%clk 0:02:01]} 26. Rb2 {[%clk 0:03:10]}  Qa1 {[%clk 0:01:53]} 27. Qxb5 {[%clk 0:02:56]}  h6 {[%clk 0:01:53]} 28. Rb1 {[%clk 0:02:56]}  Qxc3 {[%clk 0:01:53]} 29. Qb2 {[%clk 0:02:57]}  Qa5 {[%clk 0:00:15]} 30. Qb4 {[%clk 0:02:44]}  Qa8 {[%clk 0:00:13]} 31. Qb7 {[%clk 0:02:44]}  Qa4 {[%clk 0:00:13]} 32. Kf2 {[%clk 0:02:44]}  c3 {[%clk 0:00:13]} 33. Kg3 {[%clk 0:00:58]}  Qd4 {[%clk 0:00:04]} 34. Rf1 {[%clk 0:00:58]}  c2 {[%clk 0:00:04]} 35. Qb5 {[%clk 0:00:58]}  Rc8 {[%clk 0:00:04]} 36. f5 {[%clk 0:00:58]}  Bd5 {[%clk 0:00:00]} 37. Nd3 {[%clk 0:00:01]}  Nxe4+ {[%clk 0:00:00]} 38. Bxe4 {[%clk 0:00:01]}  Qxe4 {[%clk 0:00:00]} 39. Re1 {[%clk 0:00:01]}  Qxe1+ {[%clk 0:00:00]} 0-1


[Site "http://www.Chess.com"]

[Event "FIDE World Rapid Chess Championship 2021"]
[White "Yuffa, Daniil"]
[Black "Lopusiewicz, Piotr"]
[WhiteFideId "24131423"]
[BlackFideId "1116029"]
[WhiteElo "2514"]
[BlackElo "2197"]
[Result "1-0"]
[Round "04"]
[TimeControl "900+10"]
[Date "2021.12.26"]
[WhiteClock "0:04:24"]
[BlackClock "0:00:25"]

1. d4 {[%clk 0:15:25]}  Nf6 {[%clk 0:15:16]} 2. c4 {[%clk 0:15:25]}  e6 {[%clk 0:15:16]} 3. g3 {[%clk 0:15:25]}  d5 {[%clk 0:15:16]} 4. Bg2 {[%clk 0:15:25]}  Bb4+ {[%clk 0:15:16]} 5. Bd2 {[%clk 0:15:25]}  Be7 {[%clk 0:15:16]} 6. Nf3 {[%clk 0:15:25]}  O-O {[%clk 0:15:16]} 7. O-O {[%clk 0:15:25]}  c6 {[%clk 0:15:16]} 8. Bc3 {[%clk 0:15:25]}  dxc4 {[%clk 0:15:16]} 9. a4 {[%clk 0:15:25]}  b5 {[%clk 0:14:50]} 10. axb5 {[%clk 0:16:20]}  cxb5 {[%clk 0:14:50]} 11. Ne5 {[%clk 0:16:20]}  Nd5 {[%clk 0:14:50]} 12. Ba5 {[%clk 0:16:20]}  Qe8 {[%clk 0:13:49]} 13. b3 {[%clk 0:15:48]}  cxb3 {[%clk 0:13:49]} 14. Qxb3 {[%clk 0:15:48]}  Nc6 {[%clk 0:11:04]} 15. Nxc6 {[%clk 0:15:53]}  Qxc6 {[%clk 0:11:04]} 16. Nc3 {[%clk 0:15:28]}  Rb8 {[%clk 0:07:55]} 17. Nxd5 {[%clk 0:15:28]}  exd5 {[%clk 0:07:55]} 18. Rfc1 {[%clk 0:15:28]}  Qd7 {[%clk 0:06:32]} 19. Rc7 {[%clk 0:14:44]}  Qd6 {[%clk 0:06:32]} 20. Bxd5 {[%clk 0:14:44]}  Be6 {[%clk 0:06:17]} 21. Bxe6 {[%clk 0:13:24]}  fxe6 {[%clk 0:06:17]} 22. e3 {[%clk 0:13:24]}  b4 {[%clk 0:04:33]} 23. Rxa7 {[%clk 0:13:22]}  Rfc8 {[%clk 0:04:33]} 24. e4 {[%clk 0:13:22]}  Rc3 {[%clk 0:02:18]} 25. Qd1 {[%clk 0:12:05]}  Bf8 {[%clk 0:02:18]} 26. Qh5 {[%clk 0:12:05]}  Qxd4 {[%clk 0:01:34]} 27. Qf7+ {[%clk 0:10:39]}  Kh8 {[%clk 0:01:34]} 28. Rb7 {[%clk 0:10:40]}  Rbc8 {[%clk 0:01:43]} 29. Qxe6 {[%clk 0:10:40]}  R3c6 {[%clk 0:01:16]} 30. Qa2 {[%clk 0:06:29]}  Rc2 {[%clk 0:00:41]} 31. Bb6 {[%clk 0:06:29]}  Rxa2 {[%clk 0:00:41]} 32. Bxd4 {[%clk 0:06:29]}  Rxa1+ {[%clk 0:00:41]} 33. Bxa1 {[%clk 0:06:29]}  Rc1+ {[%clk 0:00:41]} 34. Kg2 {[%clk 0:06:29]}  Rxa1 {[%clk 0:00:41]} 35. e5 {[%clk 0:06:29]}  Kg8 {[%clk 0:00:41]} 36. f4 {[%clk 0:06:29]}  g6 {[%clk 0:00:41]} 37. g4 {[%clk 0:06:29]}  Re1 {[%clk 0:01:01]} 38. Kf2 {[%clk 0:06:22]}  Re4 {[%clk 0:00:32]} 39. Kf3 {[%clk 0:06:45]}  Re1 {[%clk 0:00:32]} 40. Kf2 {[%clk 0:06:45]}  Rd1 {[%clk 0:00:32]} 41. Kf3 {[%clk 0:06:45]}  Bc5 {[%clk 0:00:32]} 42. f5 {[%clk 0:06:45]}  gxf5 {[%clk 0:00:32]} 43. gxf5 {[%clk 0:06:45]}  Rd3+ {[%clk 0:00:32]} 44. Kg4 {[%clk 0:06:45]}  b3 {[%clk 0:00:32]} 45. Kg5 {[%clk 0:06:45]}  Bf8 {[%clk 0:00:32]} 46. f6 {[%clk 0:06:17]}  Rd2 {[%clk 0:00:14]} 47. e6 {[%clk 0:06:10]}  b2 {[%clk 0:00:14]} 48. Rb8 {[%clk 0:06:10]}  Rg2+ {[%clk 0:00:14]} 49. Kf5 {[%clk 0:06:10]}  Rf2+ {[%clk 0:00:14]} 50. Ke5 {[%clk 0:04:23]}  Re2+ {[%clk 0:00:25]} 51. Kd5 {[%clk 0:04:23]}  Rd2+ {[%clk 0:00:25]} 52. Kc4 {[%clk 0:04:24]}  Re2 {[%clk 0:00:25]} 53. e7 {[%clk 0:04:24]}  Kf7 {[%clk 0:00:25]} 54. exf8=Q+ {[%clk 0:04:24]} 1-0


[Site "http://www.Chess.com"]

[Event "FIDE World Rapid Chess Championship 2021"]
[White "Czarnota, Pawel"]
[Black "Babazada, Khazar"]
[WhiteFideId "1121219"]
[BlackFideId "13413554"]
[WhiteElo "2511"]
[BlackElo "2170"]
[Result "0-1"]
[Round "04"]
[TimeControl "900+10"]
[Date "2021.12.26"]
[WhiteClock "0:00:07"]
[BlackClock "0:02:19"]

1. e4 {[%clk 0:15:11]}  Nf6 {[%clk 0:15:17]} 2. e5 {[%clk 0:15:11]}  Nd5 {[%clk 0:15:17]} 3. d4 {[%clk 0:15:11]}  d6 {[%clk 0:15:17]} 4. c4 {[%clk 0:15:11]}  Nb6 {[%clk 0:15:17]} 5. exd6 {[%clk 0:15:11]}  cxd6 {[%clk 0:15:17]} 6. Nc3 {[%clk 0:15:11]}  g6 {[%clk 0:15:17]} 7. Bg5 {[%clk 0:15:11]}  Bg7 {[%clk 0:15:17]} 8. Rc1 {[%clk 0:15:11]}  h6 {[%clk 0:15:17]} 9. Be3 {[%clk 0:15:11]}  O-O {[%clk 0:15:17]} 10. Be2 {[%clk 0:15:06]}  d5 {[%clk 0:15:10]} 11. c5 {[%clk 0:14:26]}  Nc4 {[%clk 0:15:04]} 12. Bxc4 {[%clk 0:14:26]}  dxc4 {[%clk 0:15:04]} 13. Nge2 {[%clk 0:14:26]}  Bf5 {[%clk 0:15:04]} 14. O-O {[%clk 0:14:26]}  Nc6 {[%clk 0:15:04]} 15. b3 {[%clk 0:12:28]}  Bd3 {[%clk 0:15:01]} 16. bxc4 {[%clk 0:12:28]}  Bxc4 {[%clk 0:15:01]} 17. Qa4 {[%clk 0:12:28]}  Bxe2 {[%clk 0:12:50]} 18. Nxe2 {[%clk 0:12:24]}  Qd7 {[%clk 0:12:50]} 19. Rfd1 {[%clk 0:12:24]}  e6 {[%clk 0:12:50]} 20. Rb1 {[%clk 0:12:24]}  Rfd8 {[%clk 0:12:50]} 21. Qb5 {[%clk 0:12:24]}  Rab8 {[%clk 0:12:03]} 22. h3 {[%clk 0:11:47]}  a6 {[%clk 0:11:45]} 23. Qb3 {[%clk 0:09:43]}  g5 {[%clk 0:11:13]} 24. Nc3 {[%clk 0:09:43]}  Nxd4 {[%clk 0:11:21]} 25. Qc4 {[%clk 0:06:52]}  e5 {[%clk 0:11:21]} 26. Rb6 {[%clk 0:06:52]}  Rbc8 {[%clk 0:10:10]} 27. Rdb1 {[%clk 0:04:08]}  Rc7 {[%clk 0:09:08]} 28. Ne4 {[%clk 0:04:08]}  Qf5 {[%clk 0:09:08]} 29. f3 {[%clk 0:04:08]}  Rdd7 {[%clk 0:09:08]} 30. Bxd4 {[%clk 0:04:08]}  exd4 {[%clk 0:08:15]} 31. Qd3 {[%clk 0:03:09]}  Qe5 {[%clk 0:08:05]} 32. Kh1 {[%clk 0:03:09]}  f5 {[%clk 0:08:05]} 33. Nd6 {[%clk 0:03:09]}  Rxc5 {[%clk 0:07:04]} 34. Nxb7 {[%clk 0:02:17]}  Rc3 {[%clk 0:06:57]} 35. Qxa6 {[%clk 0:02:17]}  d3 {[%clk 0:06:57]} 36. Re6 {[%clk 0:00:58]}  d2 {[%clk 0:03:39]} 37. Rxe5 {[%clk 0:00:32]}  Rc1+ {[%clk 0:03:39]} 38. Kh2 {[%clk 0:00:32]}  Bxe5+ {[%clk 0:03:39]} 39. f4 {[%clk 0:00:32]}  d1=Q {[%clk 0:03:39]} 40. Qe6+ {[%clk 0:00:32]}  Rf7 {[%clk 0:03:39]} 41. Qe8+ {[%clk 0:00:32]}  Rf8 {[%clk 0:02:19]} 42. Qe6+ {[%clk 0:00:07]}  Kh7 {[%clk 0:02:19]} 43. Qxe5 {[%clk 0:00:07]}  Rxb1 {[%clk 0:02:19]} 44. Qe7+ {[%clk 0:00:07]}  Kg8 {[%clk 0:02:19]} 45. Qe6+ {[%clk 0:00:07]}  Kg7 {[%clk 0:02:19]} 46. Qe7+ {[%clk 0:00:07]}  Rf7 {[%clk 0:02:19]} 47. Qe5+ {[%clk 0:00:07]}  Kh7 {[%clk 0:02:19]} 0-1


[Site "http://www.Chess.com"]

[Event "FIDE World Rapid Chess Championship 2021"]
[White "Mitrabha, Guha"]
[Black "Sanal, Vahap"]
[WhiteFideId "5057000"]
[BlackFideId "6300545"]
[WhiteElo "2107"]
[BlackElo "2509"]
[Result "1-0"]
[Round "04"]
[TimeControl "900+10"]
[Date "2021.12.26"]
[WhiteClock "0:04:15"]
[BlackClock "0:00:20"]

1. d4 {[%clk 0:15:35]}  d5 {[%clk 0:15:25]} 2. c4 {[%clk 0:15:35]}  c6 {[%clk 0:15:25]} 3. Nf3 {[%clk 0:15:35]}  Nf6 {[%clk 0:15:25]} 4. g3 {[%clk 0:15:35]}  e6 {[%clk 0:15:33]} 5. Bg2 {[%clk 0:15:35]}  Nbd7 {[%clk 0:15:33]} 6. O-O {[%clk 0:15:35]}  dxc4 {[%clk 0:15:33]} 7. a4 {[%clk 0:15:35]}  a5 {[%clk 0:15:33]} 8. Nbd2 {[%clk 0:15:35]}  b5 {[%clk 0:15:33]} 9. Ne5 {[%clk 0:15:35]}  Nxe5 {[%clk 0:15:33]} 10. dxe5 {[%clk 0:15:35]}  Nd5 {[%clk 0:15:41]} 11. Ne4 {[%clk 0:15:21]}  Bb7 {[%clk 0:15:41]} 12. Nd6+ {[%clk 0:15:21]}  Bxd6 {[%clk 0:14:12]} 13. exd6 {[%clk 0:15:21]}  Qb6 {[%clk 0:14:12]} 14. e4 {[%clk 0:15:21]}  Nf6 {[%clk 0:14:12]} 15. Be3 {[%clk 0:13:18]}  c5 {[%clk 0:13:17]} 16. axb5 {[%clk 0:13:18]}  Qxb5 {[%clk 0:13:17]} 17. Qc2 {[%clk 0:13:18]}  Qb3 {[%clk 0:12:35]} 18. Qxb3 {[%clk 0:12:34]}  cxb3 {[%clk 0:12:35]} 19. f3 {[%clk 0:12:34]}  Nd7 {[%clk 0:12:35]} 20. Rfc1 {[%clk 0:11:50]}  O-O {[%clk 0:10:49]} 21. Bxc5 {[%clk 0:11:50]}  Rfc8 {[%clk 0:10:49]} 22. Bd4 {[%clk 0:11:50]}  Rc6 {[%clk 0:10:59]} 23. Rxc6 {[%clk 0:09:53]}  Bxc6 {[%clk 0:10:59]} 24. Rc1 {[%clk 0:09:53]}  Bb5 {[%clk 0:10:59]} 25. Rc7 {[%clk 0:09:53]}  e5 {[%clk 0:10:59]} 26. Bc3 {[%clk 0:09:16]}  a4 {[%clk 0:08:48]} 27. Bh3 {[%clk 0:09:16]}  Rd8 {[%clk 0:08:48]} 28. Kf2 {[%clk 0:09:00]}  h5 {[%clk 0:05:16]} 29. Bb4 {[%clk 0:06:33]}  Nf8 {[%clk 0:04:36]} 30. Rc5 {[%clk 0:06:33]}  Bd7 {[%clk 0:04:36]} 31. Bf1 {[%clk 0:06:33]}  Rb8 {[%clk 0:04:06]} 32. Ba3 {[%clk 0:04:47]}  f6 {[%clk 0:03:02]} 33. f4 {[%clk 0:04:54]}  Rc8 {[%clk 0:00:56]} 34. Bc4+ {[%clk 0:04:43]}  Kh7 {[%clk 0:00:56]} 35. Rc7 {[%clk 0:04:43]}  Ne6 {[%clk 0:00:56]} 36. Rxc8 {[%clk 0:04:43]}  Bxc8 {[%clk 0:00:56]} 37. Bb5 {[%clk 0:04:43]}  exf4 {[%clk 0:00:56]} 38. gxf4 {[%clk 0:04:43]}  Nxf4 {[%clk 0:00:20]} 39. d7 {[%clk 0:04:15]}  Bxd7 {[%clk 0:00:20]} 40. Bxd7 {[%clk 0:04:15]}  Nd3+ {[%clk 0:00:20]} 41. Ke2 {[%clk 0:04:15]} 1-0


[Site "http://www.Chess.com"]

[Event "FIDE World Rapid Chess Championship 2021"]
[White "Aditya, Mittal"]
[Black "Gajewski, Grzegorz"]
[WhiteFideId "35042025"]
[BlackFideId "1116207"]
[WhiteElo "1488"]
[BlackElo "2496"]
[Result "1/2-1/2"]
[Round "04"]
[TimeControl "900+10"]
[Date "2021.12.26"]
[WhiteClock "0:09:15"]
[BlackClock "0:12:51"]

1. d4 {[%clk 0:15:33]}  Nf6 {[%clk 0:15:23]} 2. c4 {[%clk 0:15:33]}  e6 {[%clk 0:15:23]} 3. Nf3 {[%clk 0:15:33]}  d5 {[%clk 0:15:23]} 4. Nc3 {[%clk 0:15:33]}  Bb4 {[%clk 0:15:31]} 5. Bg5 {[%clk 0:15:33]}  h6 {[%clk 0:15:31]} 6. Bxf6 {[%clk 0:15:33]}  Qxf6 {[%clk 0:15:31]} 7. e3 {[%clk 0:15:33]}  O-O {[%clk 0:15:31]} 8. Rc1 {[%clk 0:15:33]}  dxc4 {[%clk 0:15:31]} 9. Bxc4 {[%clk 0:15:33]}  c5 {[%clk 0:15:31]} 10. O-O {[%clk 0:15:33]}  cxd4 {[%clk 0:15:31]} 11. Ne4 {[%clk 0:15:33]}  Qe7 {[%clk 0:15:31]} 12. Nxd4 {[%clk 0:15:33]}  Bd7 {[%clk 0:15:31]} 13. Bd3 {[%clk 0:15:33]}  Nc6 {[%clk 0:15:31]} 14. Nb3 {[%clk 0:15:33]}  Na5 {[%clk 0:15:31]} 15. Rc7 {[%clk 0:15:33]}  Rfd8 {[%clk 0:15:53]} 16. Nxa5 {[%clk 0:16:16]}  Bxa5 {[%clk 0:15:53]} 17. Rxb7 {[%clk 0:16:16]}  Qf8 {[%clk 0:15:53]} 18. Qh5 {[%clk 0:14:32]}  Bb6 {[%clk 0:15:17]} 19. Ng5 {[%clk 0:13:32]}  Be8 {[%clk 0:14:03]} 20. Bh7+ {[%clk 0:13:14]}  Kh8 {[%clk 0:14:10]} 21. Be4 {[%clk 0:13:14]}  Kg8 {[%clk 0:14:19]} 22. Bh7+ {[%clk 0:09:15]}  Kh8 {[%clk 0:12:51]} 23. Be4 {[%clk 0:09:15]}  Kg8 {[%clk 0:12:51]} 24. Bh7+ {[%clk 0:09:15]} 1/2-1/2


[Site "http://www.Chess.com"]

[Event "FIDE World Rapid Chess Championship 2021"]
[White "Sankalp, Gupta"]
[Black "Heimann, Andreas"]
[WhiteFideId "5097010"]
[BlackFideId "24624632"]
[WhiteElo "2266"]
[BlackElo "2616"]
[Result "0-1"]
[Round "04"]
[TimeControl "900+10"]
[Date "2021.12.26"]
[WhiteClock "0:00:13"]
[BlackClock "0:00:17"]

1. e4 {[%clk 0:15:54]}  e5 {[%clk 0:15:45]} 2. Nf3 {[%clk 0:15:54]}  Nc6 {[%clk 0:15:45]} 3. Bb5 {[%clk 0:15:54]}  a6 {[%clk 0:15:45]} 4. Ba4 {[%clk 0:15:54]}  Nf6 {[%clk 0:15:45]} 5. O-O {[%clk 0:15:54]}  Bc5 {[%clk 0:15:45]} 6. c3 {[%clk 0:15:54]}  b5 {[%clk 0:15:45]} 7. Bc2 {[%clk 0:15:54]}  d5 {[%clk 0:15:45]} 8. exd5 {[%clk 0:15:54]}  Qxd5 {[%clk 0:15:45]} 9. d3 {[%clk 0:15:54]}  Bf5 {[%clk 0:16:06]} 10. Be3 {[%clk 0:14:26]}  O-O {[%clk 0:14:20]} 11. Qe2 {[%clk 0:13:12]}  Bxe3 {[%clk 0:14:20]} 12. fxe3 {[%clk 0:11:07]}  e4 {[%clk 0:14:20]} 13. dxe4 {[%clk 0:11:07]}  Bxe4 {[%clk 0:14:20]} 14. Bb3 {[%clk 0:11:07]}  Qd3 {[%clk 0:14:20]} 15. Qxd3 {[%clk 0:09:59]}  Bxd3 {[%clk 0:13:47]} 16. Re1 {[%clk 0:09:59]}  Rfe8 {[%clk 0:13:47]} 17. Na3 {[%clk 0:09:59]}  Rad8 {[%clk 0:13:47]} 18. Rad1 {[%clk 0:09:59]}  Ng4 {[%clk 0:13:47]} 19. Bc2 {[%clk 0:08:20]}  Bxc2 {[%clk 0:13:29]} 20. Nxc2 {[%clk 0:08:20]}  Rxd1 {[%clk 0:13:29]} 21. Rxd1 {[%clk 0:08:20]}  Kf8 {[%clk 0:13:29]} 22. Rd7 {[%clk 0:08:20]}  Re7 {[%clk 0:13:29]} 23. Rxe7 {[%clk 0:08:20]}  Kxe7 {[%clk 0:13:29]} 24. Nfd4 {[%clk 0:08:20]}  Nge5 {[%clk 0:12:22]} 25. Nxc6+ {[%clk 0:08:05]}  Nxc6 {[%clk 0:12:30]} 26. Kf2 {[%clk 0:08:05]}  Ne5 {[%clk 0:12:30]} 27. Ke2 {[%clk 0:08:05]}  c5 {[%clk 0:12:30]} 28. e4 {[%clk 0:08:05]}  Kd6 {[%clk 0:12:30]} 29. b3 {[%clk 0:08:05]}  Ng4 {[%clk 0:12:30]} 30. h3 {[%clk 0:08:05]}  Ne5 {[%clk 0:12:30]} 31. Ne3 {[%clk 0:08:05]}  g6 {[%clk 0:12:30]} 32. Nd5 {[%clk 0:07:54]}  h5 {[%clk 0:12:03]} 33. Ke3 {[%clk 0:07:53]}  a5 {[%clk 0:12:03]} 34. Nb6 {[%clk 0:07:53]}  Kc7 {[%clk 0:11:21]} 35. Nd5+ {[%clk 0:06:29]}  Kc6 {[%clk 0:11:21]} 36. Ne7+ {[%clk 0:06:29]}  Kd6 {[%clk 0:11:21]} 37. Nd5 {[%clk 0:06:43]}  h4 {[%clk 0:11:26]} 38. Nf4 {[%clk 0:06:43]}  g5 {[%clk 0:11:26]} 39. Ne2 {[%clk 0:06:43]}  f6 {[%clk 0:10:27]} 40. Nc1 {[%clk 0:05:51]}  c4 {[%clk 0:10:24]} 41. bxc4 {[%clk 0:05:51]}  Nxc4+ {[%clk 0:10:24]} 42. Kd4 {[%clk 0:05:51]}  Ne5 {[%clk 0:10:24]} 43. Nb3 {[%clk 0:05:51]}  a4 {[%clk 0:10:18]} 44. Nc1 {[%clk 0:04:03]}  Nc6+ {[%clk 0:10:18]} 45. Kd3 {[%clk 0:04:03]}  Kc5 {[%clk 0:08:44]} 46. Kc2 {[%clk 0:03:31]}  Ne5 {[%clk 0:05:43]} 47. Ne2 {[%clk 0:03:31]}  Kc4 {[%clk 0:05:43]} 48. Ng1 {[%clk 0:03:31]}  b4 {[%clk 0:05:43]} 49. cxb4 {[%clk 0:03:31]}  Kxb4 {[%clk 0:05:43]} 50. Ne2 {[%clk 0:03:20]}  Ng6 {[%clk 0:04:17]} 51. Nc3 {[%clk 0:03:20]}  Nf4 {[%clk 0:01:23]} 52. Kd2 {[%clk 0:03:20]}  Ka3 {[%clk 0:01:23]} 53. Nd5 {[%clk 0:03:20]}  Kxa2 {[%clk 0:01:23]} 54. Kc2 {[%clk 0:03:20]}  Nh5 {[%clk 0:01:44]} 55. Nc3+ {[%clk 0:00:23]}  Ka3 {[%clk 0:01:44]} 56. Nd5 {[%clk 0:00:23]}  Nf4 {[%clk 0:01:44]} 57. Nxf6 {[%clk 0:00:23]}  Kb4 {[%clk 0:01:44]} 58. e5 {[%clk 0:00:23]}  Kc4 {[%clk 0:01:44]} 59. Ne4 {[%clk 0:00:23]}  Ne6 {[%clk 0:01:44]} 60. g3 {[%clk 0:00:23]}  g4 {[%clk 0:01:12]} 61. gxh4 {[%clk 0:00:23]}  gxh3 {[%clk 0:01:12]} 62. h5 {[%clk 0:00:23]}  h2 {[%clk 0:01:12]} 63. Nf2 {[%clk 0:00:23]}  Nd4+ {[%clk 0:01:12]} 64. Kb2 {[%clk 0:00:23]}  Nf5 {[%clk 0:00:20]} 65. Ka3 {[%clk 0:00:13]}  Kd5 {[%clk 0:00:17]} 66. Kxa4 {[%clk 0:00:13]}  Nh6 {[%clk 0:00:17]} 67. Kb3 {[%clk 0:00:13]}  Kxe5 {[%clk 0:00:17]} 68. Kc3 {[%clk 0:00:13]}  Kf4 {[%clk 0:00:17]} 69. Kd2 {[%clk 0:00:13]}  Kf3 {[%clk 0:00:17]} 70. Ke1 {[%clk 0:00:13]}  Nf5 {[%clk 0:00:17]} 71. h6 {[%clk 0:00:13]}  Nxh6 {[%clk 0:00:17]} 72. Nh1 {[%clk 0:00:13]}  Nf5 {[%clk 0:00:17]} 0-1


[Site "http://www.Chess.com"]